bitfinex/quotes_BTCUSD_20220120
["timestamp","ask_amount","ask_price","bid_price","bid_amount"]
[1642707622667,0.5158,42940.0,42924.0,3.46843439]
[1642707622668,0.51472,42929.0,42924.0,3.46843439]
[1642707622874,0.11424,42935.0,42934.0,1.03573729]
[1642707623062,0.10263,42935.0,42934.0,1.18044347]
[1642707623264,0.10263,42935.0,42934.0,0.73675928]
[1642707623265,0.15023006,42935.0,42934.0,0.73675928]
[1642707623462,0.15023006,42935.0,42934.0,0.63685928]
[1642707623719,0.38923006,42935.0,42934.0,0.63685928]
[1642707624119,0.34283006,42935.0,42934.0,0.63685928]
[1642707624519,0.34283006,42935.0,42934.0,1.33685928]
[1642707624729,0.23120006,42935.0,42934.0,0.63685928]
[1642707625522,0.25320006,42935.0,42934.0,1.11509028]
[1642707625723,0.252,42935.0,42934.0,1.11509028]
[1642707625924,0.252,42935.0,42934.0,1.38917265]
[1642707626123,0.252,42935.0,42934.0,1.48917265]
[1642707626320,0.252,42935.0,42934.0,1.78278773]
[1642707626922,0.23,42935.0,42934.0,1.48917265]
[1642707627561,0.23,42935.0,42934.0,1.83917265]
[1642707628557,0.23,42935.0,42934.0,1.48917265]
[1642707628758,0.23,42935.0,42934.0,1.76093291]
[1642707630363,0.23,42935.0,42934.0,1.53325054]
[1642707630557,0.23,42935.0,42934.0,1.26149028]
[1642707630759,0.23,42935.0,42934.0,0.88325928]
[1642707631418,0.23,42935.0,42934.0,0.83685928]
[1642707631617,0.34859249,42935.0,42934.0,0.83685928]
[1642707632117,0.34859249,42935.0,42934.0,1.07499373]
[1642707632316,0.34859249,42935.0,42934.0,0.87499373]
[1642707632717,0.34859249,42935.0,42934.0,0.78934011]
[1642707633616,0.35359249,42935.0,42934.0,1.0326019]
[1642707634870,0.34859249,42935.0,42934.0,1.0326019]
[1642707635575,0.35259249,42935.0,42934.0,1.0326019]
[1642707636772,0.35259249,42935.0,42934.0,0.83934011]
[1642707636972,0.35259249,42935.0,42934.0,0.60120566]
[1642707637771,0.35259249,42935.0,42934.0,0.84090373]
[1642707637972,0.35259249,42935.0,42934.0,1.26913473]
[1642707638175,0.35259249,42935.0,42934.0,1.36913473]
[1642707638808,0.35259249,42935.0,42934.0,1.31913473]
[1642707638809,0.34859249,42935.0,42934.0,1.31913473]
[1642707639013,0.34859249,42935.0,42934.0,1.64494191]
[1642707641311,0.34859249,42935.0,42934.0,1.49494191]
[1642707641609,0.34859249,42935.0,42934.0,0.97583666]
[1642707641813,0.34982496,42935.0,42934.0,0.55120566]
[1642707642662,0.34982496,42935.0,42934.0,0.46554818]
[1642707642863,0.34982496,42935.0,42934.0,0.84377918]
[1642707643061,0.34982496,42935.0,42934.0,0.99017918]
[1642707643062,0.34859249,42935.0,42934.0,0.99017918]
[1642707643463,0.34859249,42935.0,42934.0,1.09017918]
[1642707644262,0.34859249,42935.0,42934.0,1.84017918]
[1642707645062,0.00124521,42941.0,42935.0,1.1]
[1642707645268,0.15812332,42953.0,42940.0,0.05821]
[1642707645465,0.0012815,42949.0,42946.0,0.17813867]
[1642707645663,0.15812332,42953.0,42947.0,0.0464]
[1642707645664,0.00123703,42953.0,42947.0,0.0464]
[1642707645867,0.00123703,42953.0,42947.0,0.04689851]
[1642707646117,0.00123703,42953.0,42948.0,0.00048132]
[1642707646417,0.00123703,42953.0,42949.0,0.0464]
[1642707646716,0.00123703,42953.0,42950.0,0.00044694]
[1642707646917,0.00123703,42953.0,42951.0,0.0464]
[1642707647217,0.00123703,42953.0,42952.0,0.00041256]
[1642707647418,0.00123703,42953.0,42952.0,0.04681256]
[1642707647718,0.01523703,42953.0,42952.0,0.04681256]
[1642707648528,0.03109703,42953.0,42952.0,0.04681256]
[1642707648722,0.03109703,42953.0,42952.0,0.00041256]
[1642707648925,0.00123743,42946.0,42938.0,7.2e-05]
[1642707649122,0.00123743,42946.0,42944.0,0.00363317]
[1642707649722,0.03123743,42946.0,42944.0,0.22555447]
[1642707649999,0.03123743,42946.0,42944.0,0.48854959]
[1642707650398,0.03123743,42946.0,42944.0,0.58854959]
[1642707650998,0.00123743,42946.0,42944.0,0.58854959]
[1642707651600,0.00823743,42946.0,42944.0,0.58854959]
[1642707652004,0.007,42946.0,42945.0,1.478231]
[1642707652201,0.007,42946.0,42945.0,1.578231]
[1642707652401,0.007,42946.0,42945.0,1.624631]
[1642707652801,0.00116105,42951.0,42945.0,1.624631]
[1642707653001,0.00116105,42951.0,42949.0,0.32307165]
[1642707653202,0.00116105,42951.0,42950.0,0.77139753]
[1642707653402,0.00116105,42951.0,42950.0,0.32139753]
[1642707653614,0.02016105,42951.0,42950.0,0.32139753]
[1642707653819,0.25016105,42951.0,42950.0,0.32139753]
[1642707654418,0.25016105,42951.0,42950.0,0.0464]
[1642707655015,0.23116105,42951.0,42950.0,0.0464]
[1642707655215,0.23116105,42951.0,42948.0,0.00090822]
[1642707655418,0.00123101,42949.0,42948.0,0.00090822]
[1642707655815,0.00123101,42949.0,42948.0,0.00097698]
[1642707656018,0.00123101,42949.0,42948.0,6.876e-05]
[1642707656421,0.00123101,42949.0,42946.0,0.00090829]
[1642707656618,0.00123101,42949.0,42947.0,8.595e-05]
[1642707657665,0.00123101,42949.0,42946.0,0.0009083]
[1642707657666,0.01586,42948.0,42946.0,0.0009083]
[1642707657866,0.01586,42948.0,42947.0,8.595e-05]
[1642707658868,0.00123101,42949.0,42945.0,0.00090832]
[1642707659075,0.00123101,42949.0,42946.0,0.00010314]
[1642707659470,0.23778233,42951.0,42946.0,0.00010314]
[1642707659670,0.012,42949.0,42946.0,0.00010314]
[1642707659974,0.012,42949.0,42945.0,0.00090832]
[1642707659975,0.001219,42947.0,42945.0,0.00090832]
[1642707660171,0.00120197,42946.0,42945.0,0.00090832]
[1642707660375,0.00120197,42946.0,42939.0,0.00363383]
[1642707660376,0.00164095,42944.0,42939.0,0.00363383]
[1642707660770,0.00164095,42944.0,42940.0,0.00020628]
[1642707661215,0.05987495,42944.0,42940.0,0.00020628]
[1642707661416,0.02508071,42942.0,42939.0,0.00022347]
[1642707661620,0.02508071,42942.0,42939.0,1.719e-05]
[1642707661815,0.11859752,42941.0,42939.0,1.719e-05]
[1642707662016,0.00120547,42940.0,42939.0,1.719e-05]
[1642707662515,0.30444589,42940.0,42935.0,8.596e-05]
[1642707662718,0.30086963,42940.0,42935.0,0.00015796]
[1642707662914,0.11859752,42939.0,42935.0,0.00015796]
[1642707663116,0.11859752,42939.0,42936.0,6.877e-05]
[1642707663315,0.11980299,42940.0,42936.0,6.877e-05]
[1642707663515,0.11859752,42938.0,42936.0,6.877e-05]
[1642707663716,0.17159752,42939.0,42936.0,6.877e-05]
[1642707663916,0.11859752,42937.0,42936.0,6.877e-05]
[1642707664121,0.11859752,42938.0,42936.0,6.877e-05]
[1642707664318,0.11859752,42937.0,42936.0,6.877e-05]
[1642707664719,0.11859752,42937.0,42936.0,0.34067756]
[1642707664964,0.11859752,42937.0,42936.0,0.64067756]
[1642707665165,0.11859752,42937.0,42936.0,6.877e-05]
[1642707665764,0.17059752,42937.0,42936.0,6.877e-05]
[1642707666165,0.17059752,42937.0,42936.0,0.26735355]
[1642707666366,0.17059752,42937.0,42936.0,0.72591158]
[1642707666568,0.17059752,42937.0,42936.0,1.04591769]
[1642707666969,0.11859752,42937.0,42936.0,1.47054869]
[1642707667768,0.15759752,42937.0,42936.0,1.47754869]
[1642707668815,0.15759752,42937.0,42936.0,1.09931769]
[1642707669010,0.11859752,42937.0,42936.0,0.87231158]
[1642707669209,0.11859752,42937.0,42936.0,0.82591158]
[1642707669809,0.15359752,42937.0,42936.0,0.83091158]
[1642707670809,0.035,42937.0,42936.0,0.83091158]
[1642707671012,0.23,42938.0,42936.0,0.82591158]
[1642707671712,0.26,42938.0,42936.0,0.83191158]
[1642707671916,0.11858614,42937.0,42936.0,0.83191158]
[1642707673070,0.11858614,42937.0,42936.0,0.82591158]
[1642707673670,0.15258614,42937.0,42936.0,0.83291158]
[1642707673872,0.034,42937.0,42936.0,1.58058359]
[1642707674073,0.034,42937.0,42936.0,1.26114258]
[1642707675072,0.23,42938.0,42936.0,1.25414258]
[1642707675272,0.23,42938.0,42937.0,0.6464]
[1642707675672,0.271,42938.0,42937.0,0.7524]
[1642707676810,0.271,42938.0,42937.0,0.6524]
[1642707677115,0.23,42938.0,42937.0,0.7464]
[1642707677712,0.271,42938.0,42937.0,0.6534]
[1642707678911,0.23,42938.0,42937.0,0.6464]
[1642707679880,0.27,42938.0,42937.0,0.6524]
[1642707681083,0.23,42938.0,42937.0,0.6464]
[1642707681283,0.23,42938.0,42937.0,0.7464]
[1642707681682,0.271,42938.0,42937.0,0.7524]
[1642707681885,0.271,42938.0,42937.0,1.0524]
[1642707682083,0.271,42938.0,42937.0,0.7524]
[1642707682484,0.271,42938.0,42937.0,1.180631]
[1642707683083,0.23,42938.0,42937.0,1.174631]
[1642707683716,0.271,42938.0,42937.0,1.182631]
[1642707684924,0.271,42938.0,42937.0,1.174631]
[1642707685117,0.23,42938.0,42937.0,1.174631]
[1642707685718,0.271,42938.0,42937.0,1.181631]
[1642707686921,0.23,42938.0,42937.0,1.174631]
[1642707687360,0.23,42938.0,42937.0,1.128231]
[1642707687764,0.271,42938.0,42937.0,0.534231]
[1642707688162,0.271,42938.0,42937.0,0.206]
[1642707688463,0.271,42938.0,42937.0,0.156]
[1642707688661,0.271,42938.0,42937.0,0.056]
[1642707688863,0.271,42938.0,42937.0,0.006]
[1642707689061,0.271,42938.0,42936.0,0.63391744]
[1642707689062,0.23,42938.0,42936.0,0.63391744]
[1642707689862,0.266,42938.0,42936.0,0.63991744]
[1642707691110,0.23,42938.0,42936.0,0.63391744]
[1642707691712,0.23,42938.0,42936.0,0.63991744]
[1642707691915,0.265,42938.0,42936.0,0.63991744]
[1642707692112,0.265,42938.0,42936.0,0.42335355]
[1642707692314,0.32917962,42937.0,42936.0,0.00606877]
[1642707692515,0.33043777,42937.0,42936.0,0.00599481]
[1642707692713,0.00125815,42937.0,42936.0,0.00599481]
[1642707693112,0.00124289,42936.0,42935.0,0.00097276]
[1642707693313,0.00124289,42936.0,42934.0,0.46489819]
[1642707693514,0.00129189,42935.0,42934.0,0.46579896]
[1642707693712,0.00129189,42935.0,42934.0,0.46512325]
[1642707694513,0.00129189,42935.0,42934.0,0.46422248]
[1642707694970,0.29956589,42935.0,42934.0,0.46422248]
[1642707695768,0.31756589,42935.0,42934.0,0.46422248]
[1642707697068,0.29956589,42935.0,42934.0,0.46422248]
[1642707697871,0.31956589,42935.0,42934.0,0.46422248]
[1642707699030,0.29956589,42935.0,42934.0,0.46422248]
[1642707699230,0.00129189,42935.0,42934.0,0.46422248]
[1642707699630,0.33422019,42935.0,42934.0,0.46422248]
[1642707699833,0.35922019,42935.0,42934.0,0.46422248]
[1642707700231,0.02629189,42935.0,42934.0,0.46422248]
[1642707701033,0.00129189,42935.0,42934.0,0.46422248]
[1642707701831,0.02529189,42935.0,42934.0,0.46422248]
[1642707702667,0.36092898,42935.0,42934.0,0.46422248]
[1642707702867,0.36077034,42935.0,42934.0,0.46422248]
[1642707703066,0.38677034,42935.0,42934.0,0.46422248]
[1642707703766,0.39977034,42935.0,42934.0,0.46422248]
[1642707703965,0.06413325,42935.0,42934.0,0.46422248]
[1642707704167,0.01413325,42935.0,42934.0,0.46422248]
[1642707704967,0.00113325,42935.0,42934.0,0.46422248]
[1642707705668,0.23,42938.0,42935.0,0.1869314]
[1642707706112,0.29993153,42937.0,42935.0,0.1869314]
[1642707706315,0.23,42938.0,42935.0,0.1869314]
[1642707706710,0.30444457,42937.0,42935.0,0.1869314]
[1642707706910,0.29880457,42937.0,42935.0,0.1869314]
[1642707707211,0.601779,42937.0,42935.0,0.1869314]
[1642707707412,0.30003754,42936.0,42934.0,0.46512325]
[1642707707614,0.31715141,42936.0,42934.0,0.46422248]
[1642707707811,0.31715141,42936.0,42934.0,0.46512327]
[1642707708212,0.00120694,42935.0,42934.0,0.46512327]
[1642707708612,0.74135921,42935.0,42934.0,0.46512327]
[1642707708819,1.15296921,42935.0,42934.0,0.35384097]
[1642707709014,0.91799887,42935.0,42934.0,0.35384097]
[1642707709213,0.5778466,42935.0,42934.0,0.35384097]
[1642707709413,1.01474554,42933.0,42932.0,0.00097284]
[1642707709617,1.12063916,42933.0,42932.0,0.00090084]
[1642707709862,1.12063916,42933.0,42932.0,0.0009696]
[1642707710064,1.12063916,42933.0,42932.0,6.876e-05]
[1642707710466,1.0,42932.0,42924.0,0.00360416]
[1642707710666,0.00125822,42925.0,42924.0,0.00360416]
[1642707711265,0.00125822,42925.0,42910.0,0.25191633]
[1642707711466,0.00125822,42925.0,42913.0,0.25158293]
[1642707711667,0.00125822,42925.0,42917.0,0.18884262]
[1642707712167,0.00125822,42925.0,42918.0,0.00024066]
[1642707712768,0.00125822,42925.0,42920.0,0.19214]
[1642707713168,0.00125822,42925.0,42921.0,0.00018909]
[1642707713471,0.00125822,42925.0,42924.0,0.19823529]
[1642707713934,0.04025822,42925.0,42924.0,0.19837281]
[1642707714122,0.04025822,42925.0,42924.0,0.19823529]
[1642707714123,0.039,42925.0,42924.0,0.19823529]
[1642707714323,0.039,42925.0,42924.0,0.19837281]
[1642707714523,0.039,42925.0,42924.0,0.24837281]
[1642707715124,0.30037361,42929.0,42924.0,0.24837281]
[1642707715328,0.32375283,42930.0,42924.0,0.24837281]
[1642707715524,0.32375283,42930.0,42925.0,0.00012033]
[1642707716025,0.33675283,42930.0,42925.0,0.00012033]
[1642707716230,0.33675283,42930.0,42925.0,0.00101359]
[1642707716625,0.33675283,42930.0,42926.0,0.00010314]
[1642707716825,0.30459107,42929.0,42926.0,0.00010314]
[1642707717227,0.00128642,42927.0,42926.0,0.00010314]
[1642707717667,0.00128642,42927.0,42925.0,0.00101359]
[1642707717867,0.01328642,42927.0,42926.0,0.00010314]
[1642707718875,0.01328642,42927.0,42926.0,0.17829901]
[1642707719069,0.00128642,42927.0,42925.0,0.00012033]
[1642707719272,0.00128642,42927.0,42926.0,0.00010314]
[1642707719471,0.00128642,42927.0,42925.0,0.00012033]
[1642707719971,0.01228642,42927.0,42925.0,0.00012033]
[1642707720171,0.01228642,42927.0,42925.0,0.18003439]
[1642707720371,0.01228642,42927.0,42925.0,0.18015472]
[1642707720571,0.01228642,42927.0,42926.0,0.00010314]
[1642707721207,0.00128642,42927.0,42926.0,0.00010314]
[1642707721808,0.00128642,42927.0,42925.0,0.00012033]
[1642707722008,0.01228642,42927.0,42925.0,0.00012033]
[1642707722308,0.01228642,42927.0,42924.0,0.00089329]
[1642707722508,0.01228642,42927.0,42926.0,0.19356366]
[1642707722908,0.01228642,42927.0,42926.0,0.1936668]
[1642707723110,0.00128642,42927.0,42926.0,0.00010314]
[1642707723510,0.00128642,42927.0,42925.0,0.00012033]
[1642707723709,0.00128642,42927.0,42926.0,0.00010314]
[1642707723914,0.00128642,42927.0,42925.0,0.00019233]
[1642707723915,0.01328642,42927.0,42925.0,0.00019233]
[1642707724313,0.01328642,42927.0,42926.0,0.00010314]
[1642707724714,0.23,42930.0,42927.0,0.85]
[1642707724969,0.23,42930.0,42928.0,0.0464]
[1642707725173,0.23,42930.0,42928.0,0.04646876]
[1642707725568,0.23,42930.0,42929.0,0.6418861]
[1642707725970,0.23,42930.0,42929.0,0.7918861]
[1642707726371,0.23,42930.0,42929.0,0.15]
[1642707726574,0.23,42930.0,42928.0,0.06646876]
[1642707727168,0.23,42930.0,42928.0,0.04646876]
[1642707727971,0.238,42930.0,42928.0,0.04646876]
[1642707728371,0.238,42930.0,42928.0,6.876e-05]
[1642707729222,0.23,42930.0,42928.0,6.876e-05]
[1642707729618,0.23,42930.0,42927.0,0.00089321]
[1642707729817,0.241,42930.0,42928.0,0.00106876]
[1642707731017,0.241,42930.0,42928.0,6.876e-05]
[1642707731217,0.23,42930.0,42928.0,6.876e-05]
[1642707731822,0.241,42930.0,42928.0,0.00306876]
[1642707732018,0.241,42930.0,42928.0,0.003]
[1642707732661,0.50126792,42929.0,42928.0,0.003]
[1642707733059,0.50126792,42929.0,42928.0,6.876e-05]
[1642707733759,0.79795229,42929.0,42928.0,6.876e-05]
[1642707733959,0.81095229,42929.0,42928.0,6.876e-05]
[1642707734260,0.51426792,42929.0,42928.0,6.876e-05]
[1642707734759,0.51426792,42929.0,42927.0,8.595e-05]
[1642707735259,0.50126792,42929.0,42927.0,8.595e-05]
[1642707735459,0.69219767,42928.0,42927.0,8.595e-05]
[1642707735659,0.69219767,42928.0,42926.0,0.00089324]
[1642707735858,0.69219767,42928.0,42927.0,8.595e-05]
[1642707736322,0.75045567,42928.0,42927.0,8.595e-05]
[1642707736533,0.458258,42928.0,42927.0,8.595e-05]
[1642707736726,0.4,42928.0,42927.0,8.595e-05]
[1642707737030,0.4,42928.0,42926.0,0.00010314]
[1642707737424,0.05952367,42929.0,42926.0,0.00010314]
[1642707737624,0.00126792,42929.0,42926.0,0.00010314]
[1642707737825,0.01426792,42929.0,42928.0,0.19486139]
[1642707738026,0.013,42929.0,42928.0,0.19486139]
[1642707738224,0.013,42929.0,42928.0,6.876e-05]
[1642707738423,0.31105538,42929.0,42928.0,6.876e-05]
[1642707738636,0.31105538,42929.0,42926.0,0.00010314]
[1642707739024,0.013,42929.0,42926.0,0.00099637]
[1642707739225,0.29784519,42929.0,42926.0,0.00089323]
[1642707739424,0.30480648,42929.0,42927.0,8.595e-05]
[1642707739870,0.32380648,42929.0,42927.0,8.595e-05]
[1642707740271,0.32721743,42929.0,42927.0,8.595e-05]
[1642707740471,0.32721743,42929.0,42926.0,0.00089324]
[1642707740671,0.32262704,42929.0,42927.0,8.595e-05]
[1642707740881,0.019,42929.0,42927.0,8.595e-05]
[1642707741271,0.23,42930.0,42927.0,8.595e-05]
[1642707741476,0.29704724,42929.0,42927.0,8.595e-05]
[1642707741672,0.29704724,42929.0,42926.0,0.00089324]
[1642707741973,0.248,42930.0,42927.0,8.595e-05]
[1642707742972,0.248,42930.0,42926.0,0.00089323]
[1642707743171,0.23,42930.0,42927.0,8.595e-05]
[1642707744018,0.265,42930.0,42926.0,0.00089323]
[1642707744217,0.265,42930.0,42927.0,8.595e-05]
[1642707745220,0.23,42930.0,42926.0,0.00089323]
[1642707745420,0.23,42930.0,42927.0,8.595e-05]
[1642707746018,0.289,42930.0,42927.0,8.595e-05]
[1642707746420,0.289,42930.0,42926.0,0.00089323]
[1642707746621,0.29696133,42929.0,42927.0,8.595e-05]
[1642707746820,0.289,42930.0,42927.0,8.595e-05]
[1642707747221,0.23,42930.0,42927.0,8.595e-05]
[1642707747670,0.23,42930.0,42926.0,0.00089323]
[1642707747873,0.266,42930.0,42928.0,6.876e-05]
[1642707748069,0.266,42930.0,42927.0,8.595e-05]
[1642707748671,0.266,42930.0,42927.0,0.00097916]
[1642707748971,0.266,42930.0,42928.0,6.876e-05]
[1642707749172,0.23,42930.0,42928.0,6.876e-05]
[1642707749976,0.286,42930.0,42928.0,6.876e-05]
[1642707750172,0.286,42930.0,42927.0,0.00089321]
[1642707750373,0.286,42930.0,42929.0,0.18575884]
[1642707751213,0.23,42930.0,42929.0,0.43575884]
[1642707751811,0.23,42930.0,42929.0,0.18565884]
[1642707752111,0.234,42930.0,42929.0,0.18665884]
[1642707752712,0.234,42930.0,42929.0,0.23665884]
[1642707753412,0.18,42930.0,42929.0,0.23565884]
[1642707754013,0.236,42930.0,42929.0,0.23765884]
[1642707754721,0.236,42930.0,42929.0,0.57598101]
[1642707754972,0.236,42930.0,42929.0,0.97598101]
[1642707755280,0.236,42930.0,42929.0,1.07398101]
[1642707755281,0.18,42930.0,42929.0,1.07398101]
[1642707755873,0.1193105,42930.0,42929.0,1.85258201]
[1642707756073,0.1193105,42930.0,42929.0,1.99864201]
[1642707756476,0.1193105,42930.0,42929.0,1.66031984]
[1642707757277,0.1193105,42930.0,42929.0,1.64931984]
[1642707757477,0.1193105,42930.0,42929.0,1.56425984]
[1642707757678,0.1193105,42930.0,42929.0,1.21028984]
[1642707758076,0.1193105,42930.0,42929.0,1.22428984]
[1642707758919,0.1193105,42930.0,42929.0,1.52428984]
[1642707759620,0.1193105,42930.0,42929.0,1.22428984]
[1642707759813,0.1193105,42930.0,42929.0,1.21028984]
[1642707760015,0.1193105,42930.0,42929.0,1.22528984]
[1642707761217,0.1193105,42930.0,42929.0,1.21028984]
[1642707762017,0.1193105,42930.0,42929.0,1.22728984]
[1642707763277,0.1193105,42930.0,42929.0,1.21028984]
[1642707764076,0.1193105,42930.0,42929.0,1.22828984]
[1642707764376,0.1193105,42930.0,42929.0,1.17828984]
[1642707764576,0.1193105,42930.0,42929.0,0.82828984]
[1642707765180,0.1193105,42930.0,42929.0,0.81028984]
[1642707765976,0.1193105,42930.0,42929.0,1.23028984]
[1642707767220,0.1193105,42930.0,42929.0,1.21028984]
[1642707768124,0.1193105,42930.0,42929.0,1.23028984]
[1642707769220,0.1193105,42930.0,42929.0,1.21028984]
[1642707770067,0.1193105,42930.0,42929.0,1.23028984]
[1642707771270,0.1193105,42930.0,42929.0,1.21028984]
[1642707772072,0.1193105,42930.0,42929.0,1.23128984]
[1642707773277,0.1193105,42930.0,42929.0,1.21028984]
[1642707773728,0.1193105,42930.0,42929.0,1.11028984]
[1642707773935,0.1193105,42930.0,42929.0,0.81028984]
[1642707774132,0.1193105,42930.0,42929.0,0.82828984]
[1642707774330,0.1193105,42930.0,42929.0,0.546231]
[1642707774531,0.1193105,42930.0,42929.0,0.218]
[1642707774931,0.1193105,42930.0,42929.0,0.118]
[1642707775131,0.1193105,42930.0,42929.0,0.018]
[1642707775330,0.1193105,42930.0,42928.0,6.876e-05]
[1642707776132,0.1233105,42930.0,42928.0,0.04406876]
[1642707777232,0.1193105,42930.0,42928.0,6.876e-05]
[1642707778073,0.1283105,42930.0,42928.0,0.01106876]
[1642707779373,0.1193105,42930.0,42928.0,6.876e-05]
[1642707780175,0.1303105,42930.0,42928.0,0.00606876]
[1642707781528,0.1303105,42930.0,42928.0,6.876e-05]
[1642707781529,0.1193105,42930.0,42928.0,6.876e-05]
[1642707781718,0.1193105,42930.0,42929.0,1.378231]
[1642707781918,0.11924806,42930.0,42929.0,1.424631]
[1642707782121,0.11924806,42930.0,42929.0,1.624631]
[1642707783018,0.11504806,42930.0,42929.0,1.62455604]
[1642707784018,0.11504806,42930.0,42929.0,1.64855604]
[1642707785272,0.00127577,42942.0,42931.0,1.1]
[1642707785576,0.2851,42946.0,42931.0,1.1]
[1642707785577,0.00015472,42941.0,42935.0,0.60951307]
[1642707785776,0.00015472,42941.0,42936.0,0.74777304]
[1642707786073,0.00013753,42940.0,42936.0,0.84777304]
[1642707786378,0.00012034,42939.0,42937.0,0.17180504]
[1642707786574,0.00012034,42939.0,42938.0,1.86041171]
[1642707786874,0.00121753,42953.0,42938.0,1.86041171]
[1642707787074,0.00121753,42953.0,42952.0,0.22799374]
[1642707787273,0.00121753,42953.0,42951.0,0.36911906]
[1642707787474,0.00121753,42953.0,42952.0,0.55302078]
[1642707787677,0.66966541,42959.0,42952.0,0.65302078]
[1642707787678,0.57545711,42959.0,42952.0,0.65302078]
[1642707787872,0.01128789,42959.0,42953.0,0.0464]
[1642707788074,0.00037819,42954.0,42953.0,0.0464]
[1642707788620,0.00037819,42954.0,42953.0,0.4464]
[1642707789224,0.00037819,42954.0,42953.0,0.0464]
[1642707790025,0.885849,42959.0,42953.0,0.0464]
[1642707790526,0.29486576,42954.0,42953.0,0.0464]
[1642707790726,0.29486576,42954.0,42947.0,0.23344096]
[1642707791026,0.29486576,42954.0,42948.0,0.00010314]
[1642707791429,0.35308776,42954.0,42948.0,0.00010314]
[1642707792026,0.11858322,42953.0,42948.0,0.00010314]
[1642707792228,0.35308776,42954.0,42948.0,0.00010314]
[1642707792480,0.62347183,42954.0,42948.0,0.00010314]
[1642707792779,0.62347183,42954.0,42949.0,8.595e-05]
[1642707792780,0.11858586,42953.0,42949.0,8.595e-05]
[1642707792981,0.61285667,42952.0,42949.0,8.595e-05]
[1642707793180,0.00013957,42948.0,42943.0,0.00090297]
[1642707793378,0.0464,42947.0,42943.0,0.00090297]
[1642707794182,0.124632,42947.0,42940.0,0.00015471]
[1642707794378,0.36578832,42947.0,42943.0,0.00090304]
[1642707794778,0.36578832,42947.0,42944.0,8.595e-05]
[1642707795378,0.34578832,42947.0,42944.0,8.595e-05]
[1642707795577,0.1185981,42946.0,42944.0,8.595e-05]
[1642707795777,0.1185981,42946.0,42943.0,0.00090303]
[1642707795977,0.1185981,42946.0,42944.0,8.595e-05]
[1642707796221,0.1325981,42946.0,42944.0,8.595e-05]
[1642707796827,0.234,42946.0,42943.0,0.00090304]
[1642707797021,0.234,42946.0,42944.0,8.595e-05]
[1642707797421,0.22,42946.0,42944.0,8.595e-05]
[1642707798022,0.014,42946.0,42944.0,0.01]
[1642707798220,0.014,42946.0,42944.0,0.01008595]
[1642707798422,0.014,42946.0,42945.0,6.876e-05]
[1642707799523,0.0464,42947.0,42945.0,6.876e-05]
[1642707800081,0.30726723,42946.0,42945.0,6.876e-05]
[1642707800281,0.35366723,42946.0,42945.0,6.876e-05]
[1642707800682,0.30726723,42946.0,42945.0,6.876e-05]
[1642707802086,0.32326723,42946.0,42945.0,6.876e-05]
[1642707802488,0.016,42946.0,42945.0,6.876e-05]
[1642707802693,0.0624,42946.0,42945.0,6.876e-05]
[1642707803288,0.0464,42946.0,42945.0,6.876e-05]
[1642707804131,0.0464,42946.0,42944.0,0.01]
[1642707804132,0.0574,42946.0,42944.0,0.00896742]
[1642707804730,0.011,42946.0,42944.0,0.00896742]
[1642707806032,0.066,42946.0,42944.0,0.00896742]
[1642707807472,0.0001036,42947.0,42944.0,0.00896742]
[1642707807671,0.0001036,42947.0,42946.0,0.50592179]
[1642707807873,0.00013957,42948.0,42946.0,0.83360705]
[1642707808073,0.0001036,42947.0,42946.0,0.98760705]
[1642707808477,0.00013957,42948.0,42946.0,1.36583805]
[1642707808675,0.00013957,42948.0,42947.0,0.828231]
[1642707808875,0.00013957,42948.0,42947.0,0.5]
[1642707809076,0.00013957,42948.0,42947.0,0.6]
[1642707809276,0.00013957,42948.0,42947.0,0.595]
[1642707809583,0.00013957,42948.0,42945.0,0.00129893]
[1642707809778,0.00013957,42948.0,42944.0,0.00896742]
[1642707810086,0.00013957,42948.0,42945.0,0.001]
[1642707811342,0.00013957,42948.0,42944.0,0.00896742]
[1642707811944,0.40429345,42948.0,42944.0,0.00896742]
[1642707812342,0.5623813,42948.0,42944.0,0.00896742]
[1642707812545,0.40429345,42948.0,42944.0,0.00896742]
[1642707812744,1.01594328,42948.0,42944.0,0.00896742]
[1642707812949,0.60870983,42948.0,42944.0,0.00896742]
[1642707813149,0.45058985,42948.0,42944.0,0.00896742]
[1642707813344,0.60881343,42948.0,42944.0,0.00896742]
[1642707813544,0.11858827,42947.0,42944.0,0.00896742]
[1642707813745,0.11869187,42947.0,42944.0,0.00896742]
[1642707813946,0.17692287,42947.0,42944.0,0.00896742]
[1642707814145,0.21592287,42947.0,42944.0,0.00896742]
[1642707814346,0.11858827,42946.0,42944.0,0.00896742]
[1642707814545,0.31371536,42945.0,42944.0,0.00896742]
[1642707814980,0.43230363,42945.0,42944.0,0.00896742]
[1642707815373,0.44815363,42945.0,42944.0,0.00896742]
[1642707816174,0.46915363,42945.0,42944.0,0.00896742]
[1642707817380,0.01582953,42943.0,42942.0,0.00090305]
[1642707817774,0.1344178,42943.0,42942.0,0.00090305]
[1642707817975,0.03167953,42943.0,42942.0,0.00090305]
[1642707818176,0.47992966,42943.0,42934.0,0.00120088]
[1642707818375,0.47992966,42943.0,42940.0,0.00090312]
[1642707818626,0.11858827,42942.0,42940.0,0.00090312]
[1642707819228,0.11858827,42942.0,42935.0,0.00017191]
[1642707819430,0.11858827,42942.0,42939.0,0.00090317]
[1642707819932,0.33034139,42943.0,42940.0,8.595e-05]
[1642707820128,0.03,42942.0,42940.0,8.595e-05]
[1642707820427,0.14859417,42942.0,42940.0,8.595e-05]
[1642707820828,0.03,42942.0,42939.0,0.00090315]
[1642707821027,0.11859558,42941.0,42940.0,8.595e-05]
[1642707821430,0.03167953,42943.0,42940.0,8.595e-05]
[1642707821828,0.11859284,42942.0,42940.0,8.595e-05]
[1642707822028,0.03167953,42943.0,42938.0,0.00090318]
[1642707822229,0.05567953,42943.0,42939.0,0.00010314]
[1642707822488,0.11859647,42942.0,42939.0,0.00010314]
[1642707822684,0.31030558,42941.0,42939.0,0.00010314]
[1642707823086,0.11859647,42940.0,42939.0,0.00010314]
[1642707823285,0.11859647,42940.0,42938.0,0.00090318]
[1642707823487,0.11859647,42940.0,42939.0,0.00010314]
[1642707823686,0.42692841,42940.0,42939.0,0.00010314]
[1642707823890,0.4333166,42940.0,42939.0,0.00010314]
[1642707824087,0.43594718,42940.0,42939.0,0.00010314]
[1642707824287,0.45394718,42940.0,42939.0,0.00010314]
[1642707824486,0.45394718,42940.0,42937.0,0.00090322]
[1642707824687,0.45394718,42940.0,42938.0,0.00012033]
[1642707824887,0.3036578,42939.0,42938.0,0.00012033]
[1642707825090,0.018,42940.0,42938.0,0.00012033]
[1642707825488,0.02691222,42940.0,42938.0,0.00012033]
[1642707825690,0.13021109,42939.0,42936.0,0.00090325]